bitfinex-derivatives/quotes_BTCF0:USTF0_20250119
["timestamp","ask_amount","ask_price","bid_price","bid_amount"]
[1737325777149,0.523641,104220.0,104210.0,0.4118676]
[1737325777359,0.523641,104220.0,104210.0,0.39985176]
[1737325777562,0.523641,104220.0,104210.0,0.4118671]
[1737325778560,0.523641,104220.0,104210.0,0.58425612]
[1737325778861,0.523641,104220.0,104210.0,0.58425596]
[1737325779262,0.523641,104220.0,104210.0,0.22345596]
[1737325779464,0.531311,104220.0,104210.0,0.22345596]
[1737325779965,0.531311,104220.0,104210.0,0.22345637]
[1737325780361,0.531311,104220.0,104210.0,0.58425637]
[1737325780559,0.531311,104220.0,104210.0,0.58425349]
[1737325781268,0.531311,104220.0,104210.0,0.05106444]
[1737325781462,0.531311,104220.0,104210.0,0.41186444]
[1737325781661,0.531311,104220.0,104210.0,0.3878341]
[1737325782167,0.531311,104220.0,104210.0,0.4358781]
[1737325782667,0.531311,104220.0,104210.0,0.43587802]
[1737325783566,0.531311,104220.0,104210.0,0.45990839]
[1737325784170,0.531311,104220.0,104210.0,0.09910839]
[1737325784360,0.531311,104220.0,104210.0,0.08709432]
[1737325784960,0.531311,104220.0,104210.0,0.09910991]
[1737325785161,0.531311,104220.0,104210.0,0.0991097]
[1737325785372,0.531311,104220.0,104210.0,0.4118657]
[1737325787667,0.531311,104220.0,104210.0,0.4599097]
[1737325788671,0.531311,104220.0,104210.0,0.45990847]
[1737325790067,0.531311,104220.0,104210.0,0.51305118]
[1737325790674,0.531311,104220.0,104210.0,0.45990847]
[1737325793275,0.531311,104220.0,104210.0,0.51305118]
[1737325793981,0.531311,104220.0,104210.0,0.6854402]
[1737325794468,0.531311,104220.0,104210.0,0.68543639]
[1737325794876,0.48327,104220.0,104210.0,0.68543639]
[1737325795068,0.25177,104220.0,104210.0,0.68543639]
[1737325795972,0.25177,104220.0,104210.0,0.68543567]
[1737325796777,0.25177,104220.0,104210.0,0.91538561]
[1737325798171,0.25177,104220.0,104210.0,0.74299659]
[1737325798679,0.25177,104220.0,104210.0,0.74299589]
[1737325799776,0.25177,104220.0,104210.0,0.74299599]
[1737325800184,0.25177,104220.0,104210.0,0.74299558]
[1737325800567,0.00767,104220.0,104210.0,0.74299558]
[1737325800876,0.14109493,104240.0,104230.0,0.048035]
[1737325801064,0.14109493,104240.0,104230.0,0.87383664]
[1737325801374,0.14109493,104240.0,104230.0,0.87383418]
[1737325801979,0.14109493,104240.0,104230.0,0.82069147]
[1737325802167,0.60306764,104240.0,104210.0,0.58626622]
[1737325802373,0.04804,104220.0,104210.0,0.63731726]
[1737325802771,0.33038271,104220.0,104210.0,0.05105104]
[1737325802965,0.048044,104210.0,104200.0,8.679e-05]
[1737325803168,0.048053,104190.0,104180.0,0.7684774]
[1737325803571,0.282053,104190.0,104180.0,0.80883758]
[1737325803772,0.282053,104190.0,104180.0,0.75569487]
[1737325803974,0.282053,104190.0,104180.0,0.80883758]
[1737325804272,0.00011978,104190.0,104180.0,0.86052833]
[1737325804572,0.14109493,104210.0,104200.0,0.048049]
[1737325804777,0.14109493,104210.0,104200.0,0.82279171]
[1737325805480,0.17634579,104220.0,104200.0,1.40941714]
[1737325805481,0.00767,104220.0,104200.0,1.40941714]
[1737325805677,0.00767,104220.0,104210.0,0.46198671]
[1737325806777,0.00767,104220.0,104210.0,1.04861214]
[1737325809984,0.05571,104220.0,104210.0,1.04861214]
[1737325810679,0.05571,104220.0,104210.0,0.99546943]
[1737325810984,0.05571,104220.0,104210.0,1.04861214]
[1737325813785,0.05571,104220.0,104210.0,0.99546943]
[1737325814976,0.05571,104220.0,104210.0,1.02250158]
[1737325815378,0.05571,104220.0,104210.0,0.97445758]
[1737325815584,0.05571,104220.0,104210.0,0.61365758]
[1737325816285,0.05571,104220.0,104210.0,0.95904465]
[1737325816483,0.29591,104220.0,104210.0,0.95904465]
[1737325817079,0.59495271,104220.0,104210.0,0.95904465]
[1737325817280,0.59495271,104220.0,104210.0,0.60164449]
[1737325817582,0.95575271,104220.0,104210.0,0.60164449]
[1737325817785,1.00889542,104220.0,104200.0,0.34538491]
[1737325817987,0.70268671,104210.0,104200.0,0.36040576]
[1737325818682,0.70268671,104210.0,104200.0,0.01502085]
[1737325819394,0.34188671,104210.0,104200.0,0.01502085]
[1737325819588,0.048049,104200.0,104190.0,0.34538491]
[1737325819780,0.048049,104200.0,104190.0,0.35740248]
[1737325820087,0.048049,104200.0,104190.0,0.35740277]
[1737325820287,0.048049,104200.0,104190.0,0.01201786]
[1737325821988,0.048053,104190.0,104180.0,0.72169387]
[1737325822288,0.048053,104190.0,104180.0,0.73371198]
[1737325823188,0.048053,104190.0,104180.0,1.06966842]
[1737325823390,0.048053,104190.0,104180.0,1.12281113]
[1737325823888,0.048053,104190.0,104180.0,1.12281097]
[1737325825191,0.048053,104190.0,104180.0,0.44146962]
[1737325826086,0.055723,104190.0,104180.0,0.38832691]
[1737325826390,0.055723,104190.0,104180.0,0.44146962]
[1737325829979,0.055723,104190.0,104180.0,0.45649216]
[1737325830592,0.46966571,104190.0,104170.0,0.34538491]
[1737325830793,0.93990071,104180.0,104170.0,0.37242732]
[1737325830989,1.17020071,104180.0,104170.0,0.36040847]
[1737325831194,0.048063,104170.0,104160.0,0.39489487]
[1737325831497,0.46200571,104170.0,104160.0,0.39489487]
[1737325832088,0.46200571,104170.0,104150.0,0.34598578]
[1737325832089,0.048067,104160.0,104150.0,0.34598578]
[1737325832291,0.408867,104160.0,104150.0,0.34498578]
[1737325833487,0.408867,104160.0,104150.0,0.50069471]
[1737325833983,1.18355195,104180.0,104150.0,0.60190942]
[1737325834191,0.048064,104170.0,104160.0,0.05314271]
[1737325834596,1.18307195,104180.0,104160.0,0.42596363]
[1737325834597,0.64003195,104180.0,104160.0,0.42596363]
[1737325834792,0.41143195,104180.0,104170.0,0.048063]
[1737325834994,0.41143195,104180.0,104170.0,0.408863]
[1737325835195,0.29736,104180.0,104170.0,0.408863]
[1737325835398,0.29736,104180.0,104170.0,0.42088268]
[1737325835596,0.29736,104180.0,104170.0,0.42088281]
[1737325835892,0.29736,104180.0,104170.0,0.46200571]
[1737325836094,0.04806,104180.0,104170.0,0.47402536]
[1737325836292,0.18523059,104190.0,104170.0,0.47402536]
[1737325836604,0.07115864,104190.0,104180.0,0.46200071]
[1737325836796,0.07115864,104190.0,104180.0,0.408858]
[1737325837103,0.00767,104190.0,104180.0,0.47401998]
[1737325837400,0.00767,104190.0,104180.0,0.47401936]
[1737325837705,0.055723,104190.0,104180.0,0.87900889]
[1737325838391,0.055723,104190.0,104180.0,0.82586618]
[1737325838794,0.055723,104190.0,104180.0,1.055703]
[1737325838997,0.055723,104190.0,104180.0,1.10884571]
[1737325839394,0.055723,104190.0,104180.0,1.05570239]
[1737325839609,0.055723,104190.0,104180.0,1.1088451]
[1737325839787,0.055723,104190.0,104180.0,0.93655557]
[1737325841900,0.055723,104190.0,104180.0,0.93655584]
[1737325843202,0.055723,104190.0,104180.0,0.95157883]
[1737325843388,0.055723,104190.0,104180.0,0.85037812]
[1737325844001,0.055723,104190.0,104180.0,0.61767812]
[1737325844802,0.055723,104190.0,104180.0,0.60565981]
[1737325845003,0.46966571,104190.0,104180.0,0.24485981]
[1737325845203,0.72196571,104190.0,104180.0,0.41728451]
[1737325845509,0.72196571,104190.0,104180.0,0.21573626]
[1737325845896,0.77510842,104190.0,104180.0,2.6e-07]
[1737325846090,0.048067,104160.0,104150.0,0.39489487]
[1737325846294,0.048067,104160.0,104150.0,0.4069166]
[1737325846700,0.048067,104160.0,104150.0,0.01202173]
[1737325847401,0.048072,104150.0,104140.0,1.04961724]
[1737325847705,0.048072,104150.0,104140.0,0.64769718]
[1737325847911,0.048072,104150.0,104140.0,0.40699718]
[1737325848095,0.048072,104150.0,104140.0,0.01210231]
[1737325848295,0.048072,104150.0,104140.0,7.966e-05]
[1737325848500,0.055752,104150.0,104140.0,7.966e-05]
[1737325848701,0.46969471,104150.0,104140.0,7.966e-05]
[1737325848894,0.416552,104150.0,104140.0,7.966e-05]
[1737325849293,0.416552,104150.0,104120.0,0.39906579]
[1737325849294,0.71179471,104150.0,104120.0,0.39906579]
[1737325849505,0.87596642,104130.0,104120.0,0.39906579]
[1737325849702,0.87596642,104130.0,104100.0,1.29147211]
[1737325849703,0.048086,104120.0,104110.0,0.45998818]
[1737325849897,0.46202871,104120.0,104110.0,0.45998818]
[1737325851106,0.04809,104110.0,104100.0,0.1]
[1737325851307,0.46211237,104110.0,104100.0,0.1]
[1737325852899,0.46203271,104110.0,104100.0,0.1]
[1737325853201,0.40896966,104110.0,104100.0,0.1]
[1737325853404,7.966e-05,104110.0,104100.0,0.26640833]
[1737325853595,0.16215395,104130.0,104100.0,1.37220833]
[1737325853904,0.16215395,104130.0,104110.0,0.05314271]
[1737325854100,0.52295395,104130.0,104110.0,0.06517062]
[1737325854611,0.53814017,104130.0,104110.0,0.06516862]
[1737325854907,0.53814017,104130.0,104110.0,0.08020093]
[1737325855210,0.3608,104120.0,104110.0,0.08020093]
[1737325855396,0.3608,104120.0,104110.0,0.02705822]
[1737325855592,0.3608,104120.0,104110.0,0.08020093]
[1737325855806,0.3608,104120.0,104110.0,0.06516862]
[1737325856197,0.408886,104120.0,104110.0,0.06516862]
[1737325856606,0.408886,104120.0,104110.0,0.01202591]
[1737325857707,0.408886,104120.0,104100.0,0.89814271]
[1737325857708,0.04809,104110.0,104100.0,0.89814271]
[1737325857907,0.04809,104110.0,104100.0,0.95988565]
[1737325858313,0.04809,104110.0,104100.0,0.91016994]
[1737325858702,0.04809,104110.0,104100.0,0.89814271]
[1737325859510,0.04809,104110.0,104100.0,0.65354271]
[1737325859707,0.40889,104110.0,104100.0,0.65354271]
[1737325860104,0.40889,104110.0,104100.0,0.11503519]
[1737325860902,0.40889,104110.0,104100.0,0.1]
[1737325861103,0.46203271,104110.0,104100.0,0.09992034]
[1737325861405,0.40889,104110.0,104100.0,0.09992034]
[1737325862501,0.46203271,104110.0,104100.0,0.09992034]
[1737325862798,0.048109,104070.0,104060.0,0.2381]
[1737325863001,0.408909,104070.0,104060.0,0.54434271]
[1737325863209,0.408909,104070.0,104060.0,0.5593818]
[1737325863512,0.408909,104070.0,104060.0,0.57487855]
[1737325863808,0.408909,104070.0,104060.0,0.28363584]
[1737325864009,0.46205171,104070.0,104060.0,0.26813909]
[1737325864209,0.408909,104070.0,104060.0,0.26813909]
[1737325864610,0.432929,104070.0,104060.0,0.26813909]
[1737325864807,0.432929,104070.0,104060.0,0.29220264]
[1737325865406,0.432929,104070.0,104060.0,0.03910264]
[1737325865606,0.48607171,104070.0,104060.0,0.03910264]
[1737325866508,0.048113,104050.0,104040.0,9.312e-05]
[1737325867007,0.408913,104050.0,104040.0,9.312e-05]
[1737325867400,0.46205571,104050.0,104040.0,9.312e-05]
[1737325868107,0.048113,104050.0,104040.0,0.10135383]
[1737325868312,0.048109,104060.0,104040.0,0.46215383]
[1737325868606,0.048109,104060.0,104050.0,0.70315571]
[1737325868909,0.055789,104060.0,104050.0,0.891313]
[1737325869105,0.055789,104060.0,104050.0,0.530513]
[1737325870108,0.055789,104060.0,104050.0,0.4824]
[1737325870511,0.416589,104060.0,104050.0,0.4824]
[1737325870814,0.055789,104060.0,104050.0,0.4824]
[1737325871600,0.055789,104060.0,104050.0,0.2411]
[1737325872014,0.055789,104060.0,104050.0,0.289213]
[1737325872214,0.00768,104060.0,104050.0,0.650013]
[1737325872909,0.08799145,104070.0,104060.0,0.048109]
[1737325873109,0.08799145,104070.0,104060.0,0.904909]
[1737325873307,0.03988645,104070.0,104060.0,0.904909]
[1737325874112,0.04756645,104070.0,104060.0,0.904909]
[1737325874609,0.0317,104070.0,104060.0,0.904909]
[1737325874814,0.079804,104070.0,104060.0,0.904909]
[1737325876309,0.079804,104070.0,104060.0,0.544109]
[1737325877217,0.19365944,104070.0,104060.0,0.544109]
[1737325878214,0.2221233,104070.0,104060.0,0.37085669]
[1737325878612,0.2221233,104070.0,104060.0,0.43400495]
[1737325878816,0.2221233,104070.0,104060.0,0.18376837]
[1737325879622,0.2221233,104070.0,104050.0,0.63165089]
[1737325880122,0.2221233,104070.0,104050.0,0.63164989]
[1737325880323,0.2221233,104070.0,104050.0,0.67975889]
[1737325880618,0.2221233,104070.0,104050.0,0.48727233]
[1737325881422,0.19334073,104070.0,104050.0,0.48727233]
[1737325882414,0.19334073,104070.0,104060.0,0.048109]
[1737325883115,0.19334073,104070.0,104060.0,0.408909]
[1737325883310,0.19334073,104070.0,104060.0,0.048109]
[1737325883519,0.19334073,104070.0,104060.0,0.408909]
[1737325884316,0.19334073,104070.0,104060.0,0.48884705]
[1737325884317,0.14523673,104070.0,104060.0,0.48884705]
[1737325884514,0.31310246,104080.0,104070.0,0.048104]
[1737325884722,0.31310246,104080.0,104070.0,0.48884205]
[1737325885212,0.31310246,104080.0,104070.0,0.408904]
[1737325885616,0.32078246,104080.0,104070.0,0.408904]
[1737325885817,0.00768,104080.0,104070.0,0.408904]
[1737325886115,0.055779,104080.0,104070.0,0.3608]
[1737325887225,0.055779,104080.0,104070.0,0.37489636]
[1737325887724,0.055779,104080.0,104070.0,0.01409636]
[1737325887924,0.055779,104080.0,104060.0,0.408905]
[1737325888129,0.103882,104080.0,104060.0,0.408905]
[1737325888426,0.048104,104070.0,104060.0,0.408905]
[1737325888630,0.048104,104070.0,104060.0,0.3608]
[1737325889725,0.21888716,104070.0,104060.0,0.3608]
[1737325889925,0.21888716,104070.0,104050.0,0.73427333]
[1737325890528,0.21888716,104070.0,104050.0,0.82449173]
[1737325890915,0.04678155,104060.0,104050.0,0.82966018]
[1737325891323,0.07080155,104060.0,104050.0,0.82966018]
[1737325891626,0.07080155,104060.0,104050.0,0.84416983]
[1737325891823,0.04072421,104060.0,104050.0,0.85920849]
[1737325892028,0.22326702,104060.0,104050.0,0.85920849]
[1737325892423,0.22326702,104060.0,104050.0,0.80206143]
[1737325893026,0.39531919,104060.0,104050.0,0.80206143]
[1737325893931,0.19607217,104060.0,104050.0,0.80206143]
[1737325894635,0.19607217,104060.0,104050.0,0.85200038]
[1737325895528,0.19607217,104060.0,104050.0,0.55172193]
[1737325895729,0.19607217,104060.0,104050.0,0.60500038]
[1737325899222,0.19607217,104060.0,104050.0,0.3608]
[1737325899533,0.048125,104030.0,104020.0,0.06237141]
[1737325899728,0.769725,104030.0,104020.0,0.24324441]
[1737325899924,0.7216,104030.0,104020.0,0.29652286]
[1737325900125,0.3608,104040.0,104030.0,0.048121]
[1737325900334,0.3608,104040.0,104030.0,0.0631631]
[1737325900537,0.408918,104040.0,104030.0,0.03008423]
[1737325901133,0.68752807,104040.0,104000.0,0.1]
[1737325901336,0.408932,104010.0,104000.0,0.3448]
[1737325901539,0.46221045,104010.0,104000.0,0.36887431]
[1737325902130,0.5154889,104010.0,104000.0,0.12407431]
[1737325902735,1.08012642,104010.0,104000.0,0.1]
[1737325902930,0.048141,103990.0,103980.0,0.2448]
[1737325903131,0.048146,103980.0,103970.0,0.28799022]
[1737325903327,0.46222445,103980.0,103970.0,0.28799022]
[1737325903936,0.408946,103980.0,103970.0,0.33614022]
[1737325904434,0.3608,103980.0,103970.0,0.37517555]
[1737325904737,0.58099417,103990.0,103980.0,0.048146]
[1737325905040,0.58099417,103990.0,103980.0,0.279646]
[1737325905429,0.58099417,103990.0,103980.0,0.30373133]
[1737325906131,0.49445352,103990.0,103980.0,0.30373133]
[1737325906940,0.57448861,103990.0,103980.0,0.25558533]
[1737325907134,0.87448861,103990.0,103940.0,0.3608]
[1737325907340,0.048165,103940.0,103930.0,0.048168]
[1737325907538,0.408964,103940.0,103930.0,0.0628155]
[1737325908032,0.3608,103950.0,103930.0,0.44285059]
[1737325908239,0.3608,103960.0,103950.0,0.048157]
[1737325908429,0.3608938,103960.0,103950.0,0.048157]
[1737325908629,0.3608938,103960.0,103950.0,0.299757]
[1737325908942,0.44640532,103960.0,103950.0,0.299757]
[1737325909440,0.44640532,103960.0,103950.0,0.2516]
[1737325909626,0.44640532,103960.0,103950.0,0.29976]
[1737325910229,0.7216938,103960.0,103950.0,0.29976]
[1737325910537,0.7698488,103960.0,103950.0,0.29976]
[1737325911433,0.408947,103980.0,103950.0,0.74059509]
[1737325911633,0.3608,103970.0,103960.0,0.12819009]
[1737325911834,0.13365352,103990.0,103980.0,0.048146]
[1737325912035,0.08551152,103990.0,103980.0,0.048146]
[1737325912843,0.3608,103990.0,103980.0,0.048146]
[1737325913051,0.408937,104000.0,103980.0,0.048146]
[1737325913237,0.3608,103990.0,103980.0,0.048146]
[1737325913643,0.38022146,104010.0,103990.0,0.048141]
[1737325913941,0.36584452,104010.0,103990.0,0.048141]
[1737325914250,0.72664452,104010.0,103990.0,0.06319093]
[1737325914841,0.73433452,104010.0,103990.0,0.06319093]
[1737325915339,0.68620152,104010.0,103990.0,0.06319093]
[1737325915551,0.048136,104000.0,103990.0,0.06319093]
[1737325916841,0.048136,104000.0,103990.0,0.07725592]
[1737325918551,0.408936,104000.0,103990.0,0.07725592]
[1737325918848,0.648823,104010.0,103990.0,0.07725592]
[1737325919041,0.288023,104010.0,104000.0,0.048136]
[1737325919642,0.00769,104010.0,104000.0,0.048136]
[1737325919848,0.00769,104010.0,104000.0,0.14322102]
[1737325920049,0.08551152,104020.0,104000.0,0.50402102]
[1737325920350,0.08551152,104020.0,104010.0,0.59366709]
[1737325920544,0.08551152,104020.0,104010.0,0.513632]
[1737325920738,0.08551152,104020.0,104000.0,0.408935]
[1737325920739,0.13363852,104020.0,104000.0,0.408935]
[1737325920955,0.49443852,104020.0,104000.0,0.31353964]
[1737325921146,0.408927,104020.0,104000.0,0.048135]
[1737325921347,0.3608,104010.0,104000.0,0.048135]
[1737325921656,0.3608,104010.0,104000.0,0.06318162]
[1737325921850,0.408932,104010.0,104000.0,0.06318162]
[1737325922347,0.408932,104010.0,104000.0,0.01504662]
[1737325923350,0.408932,104010.0,104000.0,0.06318262]
[1737325923945,0.048132,104010.0,104000.0,0.06318262]
[1737325924546,0.39193052,104020.0,104000.0,0.09508171]
[1737325924850,0.14133052,104020.0,104010.0,0.048132]
[1737325925051,0.50213052,104020.0,104010.0,0.048132]
[1737325925249,0.50213052,104020.0,104010.0,0.06317862]
[1737325925845,0.416619,104020.0,104010.0,0.06317862]
[1737325927153,0.14133052,104020.0,104010.0,0.42397862]
[1737325927346,0.14133052,104020.0,104010.0,0.06317862]
[1737325927551,0.50213052,104020.0,104010.0,0.048132]
[1737325928750,0.14133052,104020.0,104010.0,0.048132]
[1737325928957,0.14133052,104020.0,104010.0,0.06317845]
[1737325929258,0.14133052,104020.0,104010.0,0.048132]
[1737325929455,0.50213052,104020.0,104010.0,0.048132]
[1737325930449,0.00769,104020.0,103990.0,0.97844828]
[1737325930755,0.048132,104010.0,104000.0,0.048135]
[1737325931147,0.408932,104010.0,104000.0,0.048135]
[1737325931352,0.408932,104010.0,104000.0,0.06318175]
[1737325931751,0.49497703,104010.0,104000.0,0.06318175]
[1737325933263,0.13417703,104010.0,104000.0,0.06318175]
[1737325933561,0.45453503,104010.0,104000.0,0.06318175]
[1737325933757,0.09373503,104010.0,104000.0,0.06318175]
[1737325934366,0.45453503,104010.0,104000.0,0.06318175]
[1737325934954,0.09373503,104010.0,104000.0,0.06318175]
[1737325936153,0.45453503,104010.0,104000.0,0.06318175]
[1737325936556,0.45453503,104010.0,104000.0,0.07822863]
[1737325937565,0.09373503,104010.0,104000.0,0.15826372]
[1737325937951,0.09373503,104010.0,104000.0,0.50401697]
[1737325938360,0.09373503,104010.0,104000.0,0.14321597]
[1737325938568,0.09373503,104010.0,104000.0,0.58405106]
[1737325938863,0.31457138,104030.0,104020.0,0.048127]
[1737325939058,1.04706703,104050.0,104040.0,0.048118]
[1737325939261,0.68574702,104050.0,104040.0,0.47724936]
[1737325939462,0.19924702,104050.0,104040.0,0.11644936]
[1737325939761,0.19924702,104050.0,104040.0,0.53053484]
[1737325939953,0.00361,104050.0,104040.0,0.53053484]
[1737325940153,0.48172001,104070.0,104040.0,0.53053484]
[1737325940154,0.00052001,104070.0,104060.0,0.048109]
[1737325940365,0.42747791,104080.0,104060.0,0.47724036]
[1737325940668,0.4269579,104080.0,104070.0,0.10138948]
[1737325940867,0.4509679,104080.0,104070.0,0.06314988]
[1737325941463,0.02401,104080.0,104070.0,0.14302998]
[1737325941760,0.02401,104080.0,104070.0,0.50382998]
[1737325941958,0.01439647,104090.0,104080.0,0.048099]
[1737325942165,0.69744202,104100.0,104080.0,0.048099]
[1737325942166,0.69744202,104100.0,104080.0,0.14301439]
[1737325942469,0.69744202,104100.0,104080.0,0.06313429]
[1737325943079,0.69744202,104100.0,104080.0,0.155045]
[1737325943254,0.69744202,104100.0,104080.0,0.0751649]
[1737325943460,0.3608,104090.0,104080.0,0.0751649]
[1737325943864,0.3608,104090.0,104080.0,0.155045]
[1737325944060,0.3608,104090.0,104080.0,0.16707318]
[1737325944670,0.46224202,104100.0,104090.0,0.048095]
[1737325944671,0.1,104100.0,104090.0,0.048095]
[1737325944965,0.1,104100.0,104090.0,0.15503857]
[1737325945469,0.1,104100.0,104090.0,0.07515847]
[1737325946268,0.1,104100.0,104090.0,0.06313029]
[1737325946468,0.1,104100.0,104090.0,0.06312887]
[1737325946865,0.14809,104100.0,104090.0,0.01503387]
[1737325947360,0.50889,104100.0,104090.0,0.01503387]
[1737325948065,0.50889,104100.0,104090.0,0.01503482]
[1737325948764,0.50889,104100.0,104090.0,0.01503497]
[1737325949064,0.1,104100.0,104090.0,0.14301007]
[1737325949267,0.11447237,104120.0,104100.0,0.048087]
[1737325949568,0.11447237,104120.0,104110.0,0.1279661]
[1737325949763,0.11447237,104120.0,104110.0,0.14300107]
[1737325950064,0.11447237,104120.0,104110.0,0.4887661]
[1737325950263,0.11447237,104120.0,104110.0,0.50379699]
[1737325951065,0.02401,104120.0,104110.0,0.50379699]
[1737325951364,0.02401,104120.0,104110.0,0.43937927]
[1737325951772,0.02401,104120.0,104110.0,0.43937821]
[1737325952362,0.02401,104120.0,104110.0,0.14299593]
[1737325953673,0.02401,104120.0,104110.0,0.14299603]
[1737325954362,0.38481,104120.0,104110.0,0.14299603]
[1737325954564,0.38481,104120.0,104110.0,0.048086]
[1737325954565,0.432891,104120.0,104110.0,0.048086]
[1737325954769,0.048088,104110.0,104090.0,0.9721741]
[1737325954964,0.04809,104100.0,104090.0,0.048094]
[1737325955169,0.02401,104120.0,104100.0,0.04809]
[1737325955473,0.02401,104120.0,104110.0,0.1279661]
[1737325955474,0.38481,104120.0,104110.0,0.1279661]
[1737325956370,0.02401,104120.0,104110.0,0.1279661]
[1737325956569,0.38481,104120.0,104110.0,0.1279661]
[1737325956768,0.02401,104120.0,104110.0,0.1279661]
[1737325957471,0.02401,104120.0,104110.0,0.048086]
[1737325958370,0.02401,104120.0,104110.0,0.1279661]
[1737325958371,0.38481,104120.0,104110.0,0.1279661]
[1737325959275,0.38481,104120.0,104110.0,0.1423884]
[1737325959476,0.38481,104120.0,104110.0,0.0625083]
[1737325960568,0.02401,104120.0,104110.0,0.1423884]
[1737325961077,0.432891,104120.0,104100.0,0.3608]
[1737325961381,0.048086,104110.0,104100.0,0.048088]
[1737325962178,0.274386,104110.0,104090.0,0.42340255]
[1737325962370,0.40889,104100.0,104090.0,0.06260255]
[1737325962570,0.65199,104100.0,104090.0,0.06260255]
[1737325962768,0.29119,104100.0,104090.0,0.06260255]
[1737325963075,0.65199,104100.0,104090.0,0.06260255]
[1737325965781,0.65199,104100.0,104090.0,0.07763679]
[1737325967180,0.65199,104100.0,104090.0,0.07763645]
[1737325968271,0.29119,104100.0,104090.0,0.07763645]
[1737325968475,0.29119,104100.0,104090.0,0.08966376]
[1737325968671,0.65199,104100.0,104090.0,0.08966376]
[1737325969073,0.76646237,104100.0,104090.0,0.16954386]
[1737325970374,0.76646237,104100.0,104090.0,0.15751655]
[1737325970579,0.40566237,104100.0,104090.0,0.15751655]
[1737325970883,0.76646237,104100.0,104090.0,0.13086607]
[1737325972484,0.76646237,104100.0,104090.0,0.14289343]
[1737325972882,0.76646237,104100.0,104090.0,0.14289338]
[1737325973477,0.76646237,104100.0,104090.0,0.13086607]
[1737325974577,0.76646237,104100.0,104090.0,0.14289383]
[1737325974774,0.76646237,104100.0,104090.0,0.11583217]
[1737325974980,0.76646237,104100.0,104090.0,0.14289488]
[1737325975181,0.11447237,104100.0,104090.0,0.5569245]
[1737325975381,0.11447237,104100.0,104090.0,1.2317245]
[1737325975585,0.11447237,104100.0,104090.0,0.90817246]
[1737325975787,0.14368283,104110.0,104100.0,0.04809]
[1737325976083,0.14368283,104110.0,104100.0,0.16958408]
[1737325976481,0.14368283,104110.0,104100.0,0.5424096]
[1737325976681,0.17079748,104120.0,104110.0,0.048086]
[1737325976983,0.17079748,104130.0,104120.0,0.048081]
[1737325977180,0.17079748,104130.0,104120.0,0.5664478]
[1737325977379,0.17079748,104130.0,104120.0,0.84261818]
[1737325977588,0.17079748,104130.0,104120.0,1.19139266]
[1737325978471,0.2258,104140.0,104120.0,1.59265469]
[1737325978685,0.5974,104150.0,104140.0,0.048072]
[1737325978878,0.2366,104150.0,104140.0,0.14038366]
[1737325979186,0.2366,104150.0,104140.0,0.10130162]
[1737325979378,0.81196248,104160.0,104140.0,0.09229939]
[1737325979573,0.81196248,104160.0,104150.0,0.10129662]
[1737325979874,0.81196248,104160.0,104150.0,0.14036639]
[1737325980075,0.641165,104160.0,104150.0,0.08713677]
[1737325980484,0.641165,104160.0,104150.0,0.15238731]
[1737325980687,0.641165,104160.0,104150.0,0.15238579]
[1737325982084,0.641165,104160.0,104150.0,0.15238602]
[1737325982977,0.280365,104160.0,104150.0,0.15238602]
[1737325983387,0.2323,104160.0,104150.0,0.15238602]
[1737325983693,0.641163,104160.0,104150.0,0.15238602]
[1737325983981,0.641163,104160.0,104150.0,0.16440776]
[1737325984284,0.641163,104160.0,104150.0,0.05108999]
[1737325984587,0.048072,104140.0,104130.0,0.10130562]
[1737325984889,0.048072,104140.0,104130.0,0.28699151]
[1737325984890,0.408872,104140.0,104130.0,0.28699151]
[1737325985373,0.769672,104140.0,104130.0,0.17126916]
[1737325986078,0.769672,104140.0,104110.0,0.27258378]
[1737325986284,0.408881,104120.0,104110.0,0.27258378]
[1737325987288,0.408881,104120.0,104110.0,0.11597693]
[1737325988279,0.408881,104120.0,104110.0,0.06789193]
[1737325988484,0.408881,104120.0,104110.0,0.05322962]
[1737325988885,0.048086,104110.0,104100.0,0.10131962]
[1737325989184,0.408886,104110.0,104100.0,0.10131962]
[1737325989485,0.04809,104100.0,104090.0,0.45449165]
[1737325989788,0.40889,104100.0,104090.0,0.45449165]
[1737325989978,0.40889,104100.0,104090.0,0.22449878]
[1737325991090,0.40889,104100.0,104090.0,0.05322962]
[1737325991292,0.40889,104100.0,104090.0,0.10132462]
[1737325991988,0.40889,104100.0,104090.0,0.11549972]
[1737325992285,0.048095,104090.0,104080.0,0.40126203]
[1737325992492,0.70422462,104090.0,104080.0,0.22999287]
[1737325992883,0.70422462,104090.0,104070.0,0.28789642]
[1737325993084,0.408899,104080.0,104070.0,0.28789642]
[1737325994190,0.408899,104080.0,104060.0,0.00012109]
[1737325994393,0.3608,104070.0,104060.0,0.04823009]
[1737325994988,0.408904,104070.0,104060.0,0.04823009]
[1737325996587,0.408904,104070.0,104060.0,0.0632697]
[1737325996993,0.408904,104070.0,104060.0,0.0151607]
[1737325998797,0.654004,104070.0,104060.0,0.0632697]
[1737326000098,0.654004,104070.0,104060.0,0.01516005]
[1737326000300,0.892104,104070.0,104060.0,0.01516005]
[1737326001298,0.892104,104070.0,104060.0,0.01516078]
[1737326002190,0.048093,104100.0,104080.0,0.048097]
[1737326002495,0.3608,104110.0,104100.0,0.04809]
[1737326002687,0.59114195,104120.0,104100.0,0.04809]
[1737326002688,0.57967948,104120.0,104110.0,0.048086]
[1737326002894,0.53159748,104120.0,104110.0,0.14302134]
[1737326003109,0.17079748,104120.0,104110.0,0.14302134]
[1737326003496,0.53303892,104140.0,104130.0,0.048076]
[1737326003696,0.58111092,104140.0,104130.0,0.048076]
[1737326004106,0.59440989,104140.0,104130.0,0.06310651]
[1737326004998,0.42361241,104140.0,104130.0,0.06310651]
[1737326005395,0.42361241,104140.0,104130.0,0.01503051]
[1737326005799,0.50351473,104140.0,104110.0,0.048085]
[1737326006002,0.3608,104120.0,104110.0,0.08716513]
[1737326006200,0.408881,104120.0,104110.0,0.03908013]
[1737326006499,0.637681,104120.0,104110.0,0.01503082]
[1737326006703,0.890281,104120.0,104110.0,0.01503082]
[1737326006893,0.8422,104120.0,104100.0,0.29136622]
[1737326007093,0.408886,104110.0,104100.0,0.02850939]
[1737326007293,0.408886,104110.0,104100.0,0.052563]
[1737326007695,0.408886,104110.0,104100.0,0.03908678]
[1737326007895,0.408886,104110.0,104100.0,0.01503317]
[1737326008200,0.408886,104110.0,104100.0,0.08717688]
[1737326008395,0.890282,104120.0,104100.0,0.1670792]